Workbook

Sheet 자두
A2: 자두재배농가 경쟁력제고 지원사업 대상자 내역
A3: □ 단가 : 농업용 동력운반차 3,400천원 이내/대(보조 50%, 자부담 50%)
A4: : 자두선별기 5,000천원 이내/대(보조 50%, 자부담 50%)
A5: : 우산식지주시설 20천원 이내/개(보조 50%, 자부담 50%)
A7: 읍면 | B7: 리 | C7: 대상농가 | E7: 세부사업명 | F7: 사업량 | H7: 단가 | J7: 사 업 비(천원) | M7: 재배 면적 (㎡) | N7: 사업 완료 시기 | O7: 재배 품목 | P7: 비고 | R7: 9400 | S7: =R7*3.3 -> 31020
C8: 새주소 | D8: 성명 | F8: 수량 | G8: 단위 | H8: 단가 (천원) | I8: 단위 | J8: 계 | K8: 보 조 (50%) | L8: 자부담 (50%) | R8: 1520000 | S8: =R8/(R7*3.3) -> 49.00064475
A9: 계 | D9: =COUNTA(D10:D19) -> 3 | J9: =SUM(J10:J19) -> 9,090 | K9: =SUM(K10:K19) -> 4,545 | L9: =SUM(L10:L19) -> 4,545 | R9: =SUM(#REF!)*1000 ->  | S9: =R9/S7 -> 
A10: ex)감천면 | B10: 00리 | C10: ~길 000 | D10: 박00 | E10: 농업용 동력운반차 | F10: 1 | G10: 대 | H10: 3,400 | I10: 대 | J10: =F10*H10 -> 3,400 | K10: =J10/2 -> 1,700 | L10: =J10-K10 -> 1,700 | M10: 2,975 | N10: 5월 | O10: 자두
A11: ex)예천읍 | B11: 00리 | C11: ~길 000 | D11: 조00 | E11: 자두선별기 | F11: 1 | G11: 대 | H11: 5,000 | I11: 대 | J11: =F11*H11 -> 5,000 | K11: =J11/2 -> 2,500 | L11: =J11-K11 -> 2,500 | M11: 2,258 | N11: 5월 | O11: 자두
A12: ex)예천읍 | B12: 00리 | C12: ~길 000 | D12: 박00 | E12: 지주시설 | F12: 300 | G12: 개 | H12: 2.3 | I12: 개 | J12: =+F12*H12 -> 690 | K12: =J12/2 -> 345 | L12: =+J12-K12 -> 345 | M12: 2,975 | N12: 5월 | O12: 자두

Sheet 포도비가림
A2: 2020년 포도비가림재배시설지원사업 수요 조사
A3: * 비가림하우스 기준단가 : 3,200천원 이내/1동/660㎡ (1인당 최대 5동)
A4: 읍 면 | B4: 대 상 농 가 | D4: 세부사업 | E4: 사업량 (㎡) | F4: 단가 (천원) | G4: 사 업 비(천원) | J4: 포도 재배면적(㎡) | K4: 농업경영체 등록여부(O,X) | L4: 체 납 | M4: 비 고
B5: 주 소 (OO리) | C5: 성 명 | G5: 계 | H5: 보 조 (50%) | I5: 자 부 담 (50%) | L5: 여 부
A6: 총합계 | E6: =SUBTOTAL(9,E7:E14) -> 660 | G6: =SUBTOTAL(9,G7:G14) -> 14,520 | H6: =SUBTOTAL(9,H7:H14) -> 7,260 | I6: =SUBTOTAL(9,I7:I14) -> 7,260
A7: 요약 | B7: =COUNTA(B8:B14) -> 1 | E7: =SUBTOTAL(9,E8:E14) -> 660 | G7: =SUBTOTAL(9,G8:G14) -> 14,520 | H7: =SUBTOTAL(9,H8:H14) -> 7,260 | I7: 7,260
A8: 예천읍 | B8: 예천읍 효자로 111(동본리) | C8: 김 OO | D8: 고추비가림재배시설 | E8: 660 | F8: 22 | G8: =E8*F8 -> 14,520 | H8: =G8/2 -> 7,260 | I8: =G8-H8 -> 7,260 | J8: 5,000 | K8: o | L8: 부

Sheet Sheet1
